bitfinex/quotes_SOLUSD_20260211
["timestamp","ask_amount","ask_price","bid_price","bid_amount"]
[1770807384922,0.51398326,80.525,80.494,0.55728198]
[1770807385418,0.55650493,80.535,80.502,0.50495428]
[1770807385902,0.55650493,80.529,80.502,0.50495428]
[1770807386296,0.55650493,80.536,80.502,0.50495428]
[1770807386519,0.55650493,80.541,80.512,12.42050874]
[1770807386814,0.55650493,80.541,80.513,0.50495428]
[1770807387143,41.24,80.558,80.521,0.50495428]
[1770807387144,0.55650493,80.555,80.521,0.50495428]
[1770807387715,3.45041807,80.56,80.531,0.50495428]
[1770807387716,12.4131198,80.56,80.531,0.50495428]
[1770807388217,12.41280007,80.562,80.531,0.50495428]
[1770807388420,0.55650493,80.568,80.541,0.50495428]
[1770807388718,0.55650493,80.573,80.543,0.50495428]
[1770807390021,0.55650493,80.573,80.538,49.9]
[1770807390241,0.55650493,80.559,80.538,49.9]
[1770807390410,0.55650493,80.559,80.529,0.50495428]
[1770807390845,0.55650493,80.557,80.529,0.50495428]
[1770807392136,0.55650493,80.557,80.531,0.50495428]
[1770807394540,0.55650493,80.555,80.531,0.50495428]
[1770807395840,0.55650493,80.555,80.532,0.50495428]
[1770807396523,0.55650493,80.571,80.541,0.50495428]
[1770807397629,0.55650493,80.578,80.541,0.50495428]
[1770807398345,0.55650493,80.576,80.542,0.50495428]
[1770807398839,0.55650493,80.569,80.542,0.50495428]
[1770807399022,0.55650493,80.569,80.534,0.50495428]
[1770807399831,0.55650493,80.569,80.531,0.50495428]
[1770807400339,12.41187568,80.568,80.541,0.50495428]
[1770807401239,12.41119584,80.573,80.541,0.50495428]
[1770807401421,12.4102743,80.579,80.55,3.45041807]
[1770807401630,12.40710182,80.599,80.571,0.50495428]
[1770807402347,0.1,80.6,80.573,0.50495428]
[1770807402527,0.1,80.6,80.581,0.50495428]
[1770807403042,5.68682995,80.63,80.581,0.50495428]
[1770807403342,5.68682995,80.63,80.58,3.45041807]
[1770807403343,0.55650493,80.634,80.601,0.50495428]
[1770807403640,3.45041807,80.63,80.601,0.50495428]
[1770807403820,0.55650493,80.609,80.57,49.82]
[1770807404029,0.55650493,80.609,80.571,12.41139035]
[1770807404238,0.55650493,80.609,80.572,0.50495428]
[1770807404616,0.55650493,80.607,80.574,0.50495428]
[1770807407041,0.55650493,80.605,80.574,0.50495428]
[1770807407340,12.40602436,80.606,80.561,49.82]
[1770807407341,0.55650493,80.599,80.562,0.50495428]
[1770807407641,43.9775902,80.606,80.571,0.50495428]
[1770807408037,0.55650493,80.605,80.574,12.41092094]
[1770807408228,0.55650493,80.605,80.575,0.50495428]
[1770807409044,12.40633219,80.604,80.575,0.50495428]
[1770807409252,12.96283712,80.604,80.575,0.50495428]
[1770807409628,12.40550268,80.61,80.581,0.50495428]
[1770807409839,0.55650493,80.609,80.581,0.50495428]
[1770807411345,0.55081886,80.607,80.581,0.50495428]
[1770807412748,0.55081886,80.614,80.583,0.52010431]
[1770807412949,0.55081886,80.617,80.591,0.52010431]
[1770807413154,0.55081886,80.617,80.583,0.52010431]
[1770807414362,0.55081886,80.615,80.583,0.52010431]
[1770807414530,0.55081886,80.615,80.585,0.52010431]
[1770807416738,0.55081886,80.613,80.585,0.52010431]
[1770807417467,0.55081886,80.599,80.574,0.52010431]
[1770807418759,0.55081886,80.608,80.574,0.52010431]
[1770807419063,0.55081886,80.608,80.581,0.52010431]
[1770807420655,0.55081886,80.608,80.571,0.52010431]
[1770807420838,0.55081886,80.606,80.573,0.52010431]
[1770807421551,0.55081886,80.599,80.573,0.52010431]
[1770807421760,0.55081886,80.589,80.566,49.76]
[1770807421936,0.55081886,80.589,80.568,12.41181153]
[1770807422254,0.55081886,80.599,80.569,0.52010431]
[1770807423054,0.55081886,80.597,80.571,0.52010431]
[1770807423237,0.55081886,80.606,80.571,0.52010431]
[1770807423633,0.55081886,80.606,80.57,15.86198565]
[1770807423634,0.55081886,80.606,80.58,3.45041807]
[1770807423838,12.40556265,80.609,80.58,3.45041807]
[1770807423839,12.40556265,80.609,80.581,0.52010431]
[1770807424246,0.55081886,80.613,80.581,0.52010431]
[1770807425785,0.55081886,80.612,80.583,0.52010431]
[1770807426264,0.55081886,80.612,80.578,31.02560803]
[1770807426265,0.55081886,80.609,80.576,12.41053423]
[1770807426439,0.55081886,80.609,80.575,31.0266184]
[1770807426760,12.4049994,80.613,80.583,0.52010431]
[1770807426973,12.40263928,80.628,80.591,0.52010431]
[1770807427273,0.55081886,80.627,80.591,0.52010431]
[1770807428367,0.55081886,80.625,80.593,0.52010431]
[1770807430373,0.55081886,80.623,80.593,0.52010431]
[1770807430576,12.40325461,80.624,80.584,49.78]
[1770807430577,0.55081886,80.609,80.584,49.78]
[1770807430867,0.55081886,80.609,80.585,0.52010431]
[1770807431073,0.55081886,80.609,80.587,0.52010431]
[1770807431675,0.55081886,80.599,80.57,0.52010431]
[1770807432053,0.55081886,80.599,80.571,0.52010431]
[1770807432554,0.55081886,80.597,80.571,0.52010431]
[1770807433668,0.55081886,80.597,80.573,0.52010431]
[1770807434753,0.55081886,80.603,80.573,0.52010431]
[1770807435875,0.55081886,80.601,80.575,0.52010431]
[1770807436056,0.55081886,80.599,80.566,0.52010431]
[1770807436256,0.55081886,80.599,80.572,0.52010431]
[1770807437357,0.55081886,80.599,80.562,49.78]
[1770807437358,0.55081886,80.599,80.566,0.52010431]
[1770807437771,0.55081886,80.599,80.568,0.52010431]
[1770807438777,0.55081886,80.599,80.571,0.52010431]
[1770807439788,0.55081886,80.599,80.573,0.52010431]
[1770807440283,0.55081886,80.597,80.573,0.52010431]
[1770807441180,0.54341512,80.604,80.575,0.5415914]
[1770807441383,0.54341512,80.608,80.575,0.5415914]
[1770807442786,12.40550291,80.61,80.575,0.5415914]
[1770807443488,12.94824166,80.614,80.577,0.5415914]
[1770807443684,0.54341512,80.613,80.577,0.5415914]
[1770807445181,0.54341512,80.613,80.581,0.5415914]
[1770807445386,0.51025428,80.627,80.584,0.50811781]
[1770807445565,0.51025428,80.625,80.584,0.50811781]
[1770807446983,41.2,80.637,80.591,0.50811781]
[1770807447287,0.51025428,80.644,80.611,0.50811781]
[1770807447481,0.51025428,80.644,80.613,0.50811781]
[1770807447683,72.19511149,80.658,80.621,0.50811781]
[1770807447684,0.51025428,80.657,80.621,0.50811781]
[1770807448268,0.1,80.66,80.631,0.50811781]
[1770807448478,0.1,80.67,80.642,0.50811781]
[1770807448678,0.1,80.67,80.651,0.50811781]
[1770807449470,0.1,80.67,80.653,0.50811781]
[1770807450768,0.1,80.67,80.66,3.44520888]
[1770807451587,0.61025428,80.68,80.66,3.44520888]
[1770807453488,0.1,80.68,80.661,0.50811781]
[1770807453700,0.1,80.68,80.661,12.90568292]
[1770807454373,0.1,80.68,80.661,0.50811781]
[1770807454574,0.61025428,80.68,80.66,3.44520888]
[1770807454778,0.61025428,80.68,80.662,12.39741142]
[1770807455181,0.1,80.69,80.67,3.44520888]
[1770807455380,0.1,80.69,80.662,43.39093997]
[1770807455381,0.1,80.7,80.681,0.50811781]
[1770807455600,0.1,80.71,80.69,3.44520888]
[1770807455793,0.1,80.71,80.69,3.95332669]
[1770807455995,0.1,80.71,80.691,0.50811781]
[1770807457168,0.1,80.72,80.701,0.50811781]
[1770807457375,0.51025428,80.737,80.71,3.95332669]
[1770807457570,0.51025428,80.737,80.711,0.50811781]
[1770807457790,0.51025428,80.737,80.72,3.44520888]
[1770807459100,0.51025428,80.735,80.71,3.44520888]
[1770807459504,0.51025428,80.735,80.71,3.95332669]
[1770807460294,0.51025428,80.735,80.712,12.38973139]
[1770807460699,0.1,80.75,80.721,0.50811781]
[1770807460888,0.1,80.75,80.74,3.44520888]
[1770807461078,0.1,80.75,80.733,0.50811781]
[1770807461480,12.48394502,80.75,80.73,3.44520888]
[1770807461682,0.51025428,80.739,80.71,15.83517625]
[1770807461886,0.51025428,80.739,80.71,0.50811781]
[1770807462087,0.51025428,80.739,80.71,3.95332669]
[1770807462483,0.51025428,80.748,80.73,3.44520888]
[1770807462811,0.51025428,80.748,80.72,3.44520888]
[1770807463109,0.51025428,80.748,80.73,3.44520888]
[1770807463622,0.51025428,80.748,80.713,49.8]
[1770807463914,0.51025428,80.739,80.71,3.44520888]
[1770807464286,0.51025428,80.739,80.711,12.8980027]
[1770807466002,0.51025428,80.737,80.711,12.38988489]
[1770807466396,0.51025428,80.737,80.705,12.39080602]
[1770807466587,0.51025428,80.737,80.706,0.50811781]
[1770807466992,0.51025428,80.735,80.706,0.50811781]
[1770807467193,0.51025428,80.735,80.703,12.39097466]
[1770807468114,0.51025428,80.735,80.705,12.89892383]
[1770807468301,0.51025428,80.735,80.706,0.50811781]
[1770807468612,0.51025428,80.735,80.711,0.50811781]
[1770807469689,0.51025428,80.735,80.71,3.44520888]
[1770807470096,0.51025428,80.735,80.711,0.50811781]
[1770807470689,0.53171266,80.744,80.713,0.53127882]
[1770807471516,12.48391289,80.75,80.721,0.53127882]
[1770807472011,0.53171266,80.749,80.721,0.53127882]
[1770807472311,0.1,80.75,80.731,0.53127882]
[1770807472912,0.1,80.75,80.732,12.38666204]
[1770807473298,0.1,80.75,80.74,3.43158327]
[1770807473701,12.38086257,80.77,80.741,0.53127882]
[1770807474014,0.53171266,80.769,80.741,0.53127882]
[1770807474312,0.53171266,80.769,80.737,49.8]
[1770807474501,0.53171266,80.769,80.732,62.18666204]
[1770807474696,0.53171266,80.769,80.732,62.71794086]
[1770807475211,5.13032502,80.79,80.751,0.53127882]
[1770807475212,0.53171266,80.779,80.751,0.53127882]
[1770807475394,0.53171266,80.778,80.751,0.53127882]
[1770807476318,0.53171266,80.789,80.761,0.53127882]
[1770807477208,0.53171266,80.789,80.762,12.91333969]
[1770807477407,0.53171266,80.797,80.771,0.53127882]
[1770807478110,0.53171266,80.795,80.771,0.53127882]
[1770807478494,0.53171266,80.795,80.762,43.33721304]
[1770807478495,0.53171266,80.802,80.779,0.53127882]
[1770807478694,0.53171266,80.8,80.779,0.53127882]
[1770807479893,3.43158327,80.81,80.78,0.53127882]
[1770807480195,0.53171266,80.818,80.781,0.53127882]
[1770807480404,0.53171266,80.818,80.78,53.21158327]
[1770807480405,0.53171266,80.818,80.791,0.53127882]
[1770807480596,0.53171266,80.825,80.791,0.53127882]
[1770807480929,0.53171266,80.825,80.793,0.53127882]
[1770807481521,0.1,80.83,80.811,0.53127882]
[1770807482035,0.53171266,80.856,80.821,0.53127882]
[1770807482324,0.53171266,80.856,80.8,3.43158327]
[1770807482325,0.53171266,80.864,80.84,3.96286209]
[1770807482615,3.43158327,80.86,80.81,3.43158327]
[1770807482922,0.53171266,80.849,80.811,49.76]
[1770807483220,0.53171266,80.849,80.811,0.53127882]
[1770807483425,0.53171266,80.848,80.812,12.37439984]
[1770807483802,12.36888447,80.849,80.812,12.37439984]
[1770807483803,0.53171266,80.839,80.812,12.37439984]
[1770807484015,0.53171266,80.839,80.807,49.74]
[1770807484525,0.53171266,80.829,80.79,9.17217102]
[1770807484707,0.53171266,80.819,80.78,58.93217102]
[1770807484900,0.53171266,80.819,80.781,0.53127882]
[1770807485300,0.53171266,80.808,80.764,0.53127882]
[1770807485500,0.53171266,80.799,80.771,12.38068118]
[1770807486719,0.53171266,80.799,80.764,0.53127882]
[1770807486927,0.53171266,80.799,80.771,12.38068118]
[1770807487109,0.53171266,80.807,80.772,0.53127882]
[1770807487309,0.53171266,80.807,80.774,0.53127882]
[1770807487504,0.53171266,80.805,80.774,0.53127882]
[1770807488113,12.37531866,80.806,80.76,9.17217102]
[1770807488114,0.53171266,80.799,80.76,9.17217102]
[1770807488322,12.37531866,80.806,80.774,0.53127882]
[1770807488323,0.53171266,80.805,80.774,0.53127882]
[1770807489516,0.53171266,80.805,80.775,12.38006809]
[1770807489827,0.53171266,80.805,80.775,12.91134691]
[1770807490120,0.53171266,80.799,80.773,0.53127882]
[1770807490418,0.53171266,80.799,80.775,12.38006809]
[1770807491217,0.53171266,80.799,80.773,0.53127882]
[1770807491419,0.53171266,80.799,80.769,12.38089332]
[1770807492324,0.53171266,80.798,80.763,0.53127882]
[1770807493320,0.53171266,80.798,80.77,9.70344984]
[1770807493527,0.53171266,80.806,80.771,0.53127882]
[1770807493725,0.53171266,80.804,80.771,0.53127882]
[1770807494026,9.70388368,80.8,80.771,0.53127882]
[1770807494215,0.53171266,80.799,80.764,12.38175424]
[1770807494823,0.53171266,80.799,80.764,12.91303306]
[1770807495029,0.53171266,80.789,80.764,0.53127882]
[1770807495417,0.53171266,80.805,80.77,9.17217102]
[1770807495720,9.17217102,80.8,80.771,0.53127882]
[1770807495922,0.53171266,80.8,80.771,0.53127882]
[1770807496120,0.53171266,80.809,80.771,0.53127882]
[1770807496825,0.53171266,80.807,80.771,0.53127882]
[1770807497319,0.53171266,80.799,80.761,0.53127882]
[1770807498314,0.53171266,80.797,80.761,0.53127882]
[1770807498728,12.90856299,80.796,80.763,0.53127882]
[1770807498919,0.53171266,80.799,80.763,0.53127882]
[1770807499224,9.17217102,80.79,80.763,0.53127882]
[1770807499625,0.53171266,80.79,80.763,0.53127882]
[1770807499809,0.53171266,80.79,80.756,49.74]
[1770807499810,0.53171266,80.789,80.756,49.74]
[1770807500012,0.53171266,80.789,80.709,49.56063291]
[1770807500013,0.53171266,80.771,80.751,12.38360279]
[1770807500314,0.53171266,80.779,80.751,12.38360279]
[1770807500530,0.53171266,80.779,80.754,12.38318094]
[1770807501110,12.91121359,80.779,80.754,12.38318094]
[1770807502025,0.53171266,80.779,80.754,12.8811664]
[1770807502619,0.53171266,80.779,80.755,0.49798546]
[1770807505534,0.53403749,80.795,80.761,0.54591194]
[1770807505726,49.48377094,80.835,80.771,0.54591194]
[1770807505727,0.53403749,80.799,80.771,0.54591194]
[1770807507228,12.91058146,80.798,80.771,0.54591194]
[1770807507627,0.53403749,80.797,80.771,0.54591194]
[1770807508439,12.91088782,80.796,80.771,0.54591194]
[1770807508639,0.53403749,80.829,80.781,0.54591194]
[1770807509045,0.53403749,80.819,80.781,0.54591194]
[1770807509352,0.53403749,80.819,80.791,0.54591194]
[1770807509945,0.53403749,80.819,80.793,0.54591194]
[1770807510946,0.53403749,80.819,80.794,12.37715671]
[1770807512120,0.53403749,80.817,80.79,12.37771314]
[1770807512742,0.53403749,80.809,80.786,12.37833208]
[1770807513041,0.53403749,80.809,80.789,12.37783142]
[1770807513248,0.53403749,80.809,80.786,0.54591194]
[1770807513622,0.53403749,80.809,80.786,12.92429433]
[1770807513834,0.53403749,80.809,80.787,0.54591194]
[1770807514428,0.53403749,80.819,80.787,0.54591194]
[1770807514625,0.53403749,80.819,80.791,0.54591194]
[1770807515145,0.53403749,80.832,80.801,0.54591194]
[1770807515327,9.17851496,80.83,80.801,0.54591194]
[1770807515657,0.53403749,80.829,80.799,49.76]
[1770807515839,0.53403749,80.829,80.799,50.30591194]
[1770807516341,43.29754069,80.836,80.792,49.76]
[1770807516342,0.53403749,80.819,80.792,49.76]
[1770807516546,0.53403749,80.819,80.792,62.13746311]
[1770807516726,0.53403749,80.819,80.792,12.37746311]
[1770807516928,0.53403749,80.819,80.787,49.76]
[1770807517248,0.53403749,80.817,80.789,0.54591194]
[1770807517443,0.53403749,80.809,80.789,0.54591194]
[1770807517823,0.53403749,80.809,80.787,49.76]
[1770807518848,0.53403749,80.809,80.788,0.54591194]
[1770807519027,12.37433314,80.813,80.788,0.54591194]
[1770807519228,0.53403749,80.812,80.788,0.54591194]
[1770807519426,0.53403749,80.799,80.761,0.54591194]
[1770807519632,0.53403749,80.789,80.771,12.38062102]
[1770807520237,0.53403749,80.789,80.761,0.54591194]
[1770807520238,0.53403749,80.789,80.763,12.92774184]
[1770807520753,0.53403749,80.779,80.759,49.8]
[1770807522133,0.53403749,80.779,80.754,12.38314294]
[1770807522844,0.53403749,80.777,80.75,9.7244269]
[1770807523542,0.53403749,80.777,80.751,0.54591194]
[1770807525557,0.53403749,80.777,80.752,12.38359421]
[1770807526355,0.53403749,80.777,80.752,12.92950615]
[1770807526552,0.53403749,80.777,80.753,0.54591194]
[1770807526845,0.53403749,80.777,80.752,12.38359421]
[1770807526846,12.37991482,80.776,80.752,12.38359421]
[1770807527050,0.53403749,80.775,80.748,50.44591194]
[1770807527352,0.53403749,80.775,80.75,9.17851496]
[1770807527852,0.53403749,80.775,80.751,0.54591194]
[1770807529351,0.53403749,80.775,80.752,62.84950615]
[1770807531152,12.38114104,80.768,80.741,12.38528133]
[1770807531351,0.52865874,80.767,80.743,49.96]
[1770807534762,0.52865874,80.773,80.745,0.52110209]
[1770807534970,0.52865874,80.773,80.747,0.52110209]
[1770807535173,0.52865874,80.773,80.751,0.52110209]
[1770807535369,12.90908572,80.773,80.751,0.52110209]
[1770807536358,0.52865874,80.773,80.751,0.52110209]
[1770807537255,0.52865874,80.773,80.746,12.3845144]
[1770807537256,0.52865874,80.773,80.748,12.38417959]
[1770807537658,0.52865874,80.772,80.751,12.38367195]
[1770807538067,0.52865874,80.772,80.752,0.52110209]
[1770807538445,0.52865874,80.789,80.76,3.4307521]
[1770807538653,0.52865874,80.789,80.761,0.52110209]
[1770807538852,0.52865874,80.789,80.763,0.52110209]
[1770807539248,12.37807595,80.788,80.763,0.52110209]
[1770807539453,0.52865874,80.787,80.763,0.52110209]
[1770807539869,0.52865874,80.787,80.747,0.52110209]
[1770807540053,0.52865874,80.779,80.75,12.38379241]
[1770807540449,0.52865874,80.769,80.748,50.06]
[1770807541175,0.52865874,80.759,80.732,50.08]
[1770807541876,0.52865874,80.757,80.731,12.90776485]
[1770807542765,0.52865874,80.749,80.717,0.52110209]
[1770807543162,0.52865874,80.739,80.717,0.52110209]
[1770807543357,0.52865874,80.739,80.716,50.1]
[1770807543978,0.52865874,80.737,80.716,50.1]
[1770807547457,12.38604835,80.736,80.716,50.1]
[1770807547663,0.52865874,80.735,80.716,50.1]
[1770807550258,0.52865874,80.749,80.718,0.52110209]
[1770807550478,3.4307521,80.76,80.731,0.52110209]
[1770807550679,3.4307521,80.76,80.73,3.4307521]
[1770807550680,3.4307521,80.76,80.732,50.2]
[1770807550879,0.52865874,80.759,80.733,0.52110209]
[1770807551175,0.52865874,80.758,80.733,0.52110209]
[1770807552578,3.4307521,80.76,80.695,99.13800695]
[1770807552579,0.52865874,80.768,80.741,0.52110209]
[1770807552959,0.52865874,80.768,80.742,50.22]
[1770807555291,0.52865874,80.766,80.736,12.90715044]
[1770807555893,0.52865874,80.766,80.736,0.52110209]
[1770807557391,0.52865874,80.764,80.736,0.52110209]
[1770807558590,12.38160094,80.765,80.741,0.52110209]
[1770807558809,0.52865874,80.764,80.741,0.52110209]
[1770807559973,0.52865874,80.779,80.743,0.52110209]
[1770807560891,0.50350327,80.778,80.745,0.51348925]
[1770807561087,0.50350327,80.769,80.732,0.51348925]
[1770807561293,0.50350327,80.769,80.73,53.6707521]
[1770807561294,0.50350327,80.769,80.741,0.51348925]
[1770807563677,3.4307521,80.76,80.741,0.51348925]
[1770807564900,3.43138039,80.76,80.741,0.51348925]
[1770807566096,12.38220995,80.762,80.741,0.51348925]
[1770807566900,0.48232634,80.761,80.741,0.51348925]
[1770807567074,40.6,80.786,80.73,53.67138039]
[1770807567075,3.43138039,80.76,80.737,0.49834534]
[1770807569499,0.48232634,80.765,80.737,0.49834534]
[1770807570190,0.48232634,80.765,80.739,0.49834534]
[1770807570990,0.48232634,80.763,80.739,0.49834534]
[1770807572286,0.48232634,80.763,80.741,0.49834534]
[1770807573100,0.48232634,80.767,80.741,0.49834534]
[1770807574297,0.48232634,80.767,80.742,12.38512793]
[1770807574500,0.48232634,80.767,80.743,0.49834534]
[1770807575809,0.48232634,80.767,80.745,0.49834534]
[1770807576189,0.48232634,80.765,80.74,0.49834534]
[1770807576590,0.48232634,80.765,80.735,12.88454074]
[1770807576906,0.48232634,80.765,80.738,12.3856803]
[1770807577106,0.48232634,80.765,80.736,0.49834534]
[1770807577107,0.48232634,80.765,80.742,12.38500079]
[1770807577792,0.48232634,80.765,80.737,12.88424028]
[1770807577993,0.48232634,80.765,80.738,0.49834534]
[1770807580492,0.48232634,80.763,80.74,0.49834534]
[1770807581013,0.48232634,80.763,80.735,0.49834534]
[1770807581920,0.48232634,80.759,80.736,0.49834534]
[1770807582093,3.43138039,80.76,80.736,0.49834534]
[1770807582411,0.48232634,80.764,80.736,0.49834534]
[1770807582915,12.38190755,80.763,80.739,0.49834534]
[1770807583208,12.86423389,80.763,80.739,0.49834534]
[1770807584011,3.43138039,80.76,80.739,0.49834534]
[1770807584320,0.48232634,80.754,80.732,0.49834534]
[1770807584695,12.38190755,80.763,80.73,50.24]
[1770807584696,0.48232634,80.749,80.73,50.24]
[1770807584914,0.48232634,80.748,80.73,50.24]
[1770807586006,0.48232634,80.748,80.723,0.49834534]
[1770807588924,3.43138039,80.74,80.715,50.4]
[1770807589118,0.48232634,80.739,80.716,0.49834534]
[1770807589423,0.48232634,80.739,80.719,0.49834534]
[1770807589597,0.48232634,80.739,80.721,12.88657095]
[1770807590717,0.48232634,80.739,80.722,0.4929934]
[1770807591803,3.43138039,80.75,80.725,0.4929934]
[1770807591804,0.53213911,80.75,80.725,0.4929934]
[1770807592506,3.9635195,80.75,80.725,0.4929934]
[1770807592811,12.38303387,80.756,80.725,0.4929934]
[1770807593019,3.43138039,80.76,80.731,0.4929934]
[1770807593408,15.81380153,80.76,80.731,0.4929934]
[1770807594227,0.53213911,80.759,80.733,0.4929934]
[1770807596215,0.53213911,80.77,80.735,0.4929934]
[1770807596433,0.53213911,80.769,80.735,0.4929934]
[1770807596927,12.38063491,80.772,80.741,0.4929934]
[1770807597229,0.53213911,80.789,80.751,0.4929934]
[1770807600330,0.53213911,80.759,80.722,0.4929934]
[1770807600524,0.53213911,80.743,80.722,0.4929934]
[1770807600724,0.53213911,80.743,80.711,0.4929934]
[1770807601029,0.53213911,80.739,80.719,12.38862045]
[1770807601231,0.53213911,80.759,80.731,0.4929934]
[1770807601524,3.4317048,80.76,80.731,0.4929934]
[1770807602110,3.96384391,80.76,80.731,0.4929934]
[1770807602416,3.96384391,80.76,80.733,0.4929934]
[1770807602926,12.37952293,80.779,80.733,0.4929934]
[1770807603110,0.53213911,80.778,80.741,0.4929934]
[1770807603511,0.53213911,80.778,80.743,0.4929934]
[1770807603733,12.37875465,80.784,80.742,50.4]
[1770807603734,0.53213911,80.785,80.751,0.4929934]
[1770807604314,3.4317048,80.79,80.751,0.4929934]
[1770807604625,0.53213911,80.799,80.761,0.4929934]
[1770807605426,0.53213911,80.779,80.753,0.4929934]
[1770807605628,3.4317048,80.78,80.753,0.4929934]
[1770807606333,0.53213911,80.786,80.753,0.4929934]
[1770807608617,3.4317048,80.78,80.753,0.4929934]
[1770807608814,3.4317048,80.78,80.714,5.36086188]
[1770807608815,0.53213911,80.769,80.741,0.4929934]
[1770807611135,0.53213911,80.779,80.751,0.4929934]
[1770807611329,3.4317048,80.81,80.771,0.4929934]
[1770807611520,3.4317048,80.82,80.781,0.4929934]
[1770807613338,3.96384391,80.82,80.781,0.4929934]
[1770807613739,3.4317048,80.84,80.801,0.4929934]
[1770807613937,0.53213911,80.843,80.811,0.4929934]
[1770807614944,3.96384391,80.85,80.811,0.4929934]
[1770807615232,0.53213911,80.859,80.831,0.4929934]
[1770807615619,0.53213911,80.866,80.831,0.4929934]
[1770807615926,0.53213911,80.866,80.841,0.4929934]
[1770807616935,3.5317048,80.87,80.841,0.4929934]
[1770807617432,0.1,80.87,80.841,0.4929934]
[1770807617637,0.53213911,80.869,80.841,0.4929934]
[1770807618723,0.1,80.87,80.841,0.4929934]
[1770807618937,0.1,80.88,80.851,0.4929934]
[1770807619234,0.1,80.89,80.871,0.4929934]
[1770807619915,0.1,80.9,80.881,0.4929934]
[1770807620340,3.4317048,80.89,80.858,17.3]
[1770807620636,0.52089663,80.889,80.854,0.48524614]
[1770807620818,0.52089663,80.889,80.86,3.91695094]
[1770807621018,0.52089663,80.897,80.86,3.91695094]
[1770807621219,0.1,80.9,80.87,3.4317048]
[1770807621829,0.1,80.9,80.88,3.4317048]
[1770807622037,0.1,80.9,80.86,0.48524614]
[1770807622038,0.1,80.9,80.87,3.4317048]
[1770807622337,3.5317048,80.9,80.87,3.4317048]
[1770807622641,0.52089663,80.899,80.86,3.91695094]
[1770807623055,3.4317048,80.89,80.86,3.91695094]
[1770807623345,0.52089663,80.879,80.86,0.48524614]
[1770807623565,0.52089663,80.869,80.831,20.78]
[1770807623849,0.52089663,80.869,80.84,3.4317048]
[1770807624226,0.52089663,80.879,80.84,3.4317048]
[1770807624443,0.52089663,80.879,80.85,3.4317048]
[1770807625030,0.1,80.9,80.86,3.4317048]
[1770807625230,0.1,80.9,80.87,3.4317048]
[1770807625623,0.1,80.9,80.871,0.52085912]
[1770807626848,0.48336119,80.899,80.863,0.52085912]
[1770807627046,0.58336119,80.9,80.88,3.41978925]
[1770807627345,0.58336119,80.9,80.872,0.52085912]
[1770807627751,0.48336119,80.889,80.848,0.52085912]
[1770807627951,0.48336119,80.889,80.851,0.52085912]
[1770807628153,0.1,80.9,80.871,0.52085912]
[1770807628361,0.1,80.9,80.881,0.52085912]
[1770807628835,0.1,80.9,80.871,0.52085912]
[1770807629031,0.1,80.9,80.89,3.94064837]
[1770807629236,0.1,80.9,80.89,0.52085912]
[1770807629552,0.1,80.9,80.88,3.41978925]
[1770807629553,0.1,80.9,80.881,0.52085912]
[1770807630735,0.1,80.91,80.881,0.52085912]
[1770807630930,0.06290778,80.91,80.881,0.52085912]
[1770807632057,0.48336119,80.909,80.881,0.52085912]
[1770807632261,3.48269703,80.91,80.891,0.52085912]
[1770807632262,0.06290778,80.91,80.891,0.52085912]
[1770807633437,0.1,80.93,80.901,0.52085912]
[1770807633643,0.1,80.93,80.911,0.52085912]
[1770807633856,0.48336119,80.944,80.911,0.52085912]
[1770807634077,0.1,80.95,80.921,0.52085912]
[1770807634362,0.48336119,80.972,80.941,0.52085912]
[1770807634538,0.48336119,80.981,80.951,0.52085912]
[1770807634741,0.48336119,80.989,80.958,0.52085912]
[1770807635142,0.48336119,80.989,80.95,3.41978925]
[1770807635766,0.48336119,80.989,80.947,0.52085912]
[1770807636143,0.48336119,80.979,80.947,0.52085912]
[1770807636349,0.48336119,80.969,80.931,0.52085912]
[1770807637269,0.48336119,80.959,80.911,0.52085912]
[1770807638379,5.13032502,81.01,80.941,0.52085912]
[1770807638675,0.48336119,80.979,80.941,0.52085912]
[1770807638849,0.48336119,80.979,80.94,9.14375392]
[1770807639248,0.48336119,80.979,80.933,0.52085912]
[1770807639249,0.48336119,80.969,80.933,0.52085912]
[1770807639572,0.48336119,80.969,80.94,9.66461304]
[1770807639757,0.48336119,80.987,80.951,0.52085912]
[1770807640076,0.48336119,80.987,80.96,9.14375392]
[1770807640769,0.48336119,80.987,80.951,0.52085912]
[1770807641262,0.48336119,80.987,80.95,9.14375392]
[1770807641455,0.48336119,80.987,80.951,0.52085912]
[1770807642367,0.48336119,80.969,80.932,0.52085912]
[1770807642569,0.48336119,80.977,80.941,0.52085912]
[1770807642865,0.48336119,80.989,80.951,0.52085912]
[1770807643246,0.48336119,80.979,80.943,0.52085912]
[1770807643664,0.48336119,80.979,80.95,9.14375392]
[1770807643874,0.48336119,80.979,80.95,9.66461304]
[1770807644177,0.48336119,80.989,80.951,0.52085912]
[1770807644560,0.48336119,80.989,80.96,9.14375392]
[1770807645065,0.48336119,80.989,80.951,0.52085912]
[1770807645860,0.48336119,80.989,80.961,0.52085912]